bitfinex-derivatives/quotes_SOLF0:USTF0_20241105
["timestamp","ask_amount","ask_price","bid_price","bid_amount"]
[1730790586051,7.63060291,161.28,161.22,2.82]
[1730790586052,7.63060291,161.27,161.25,3.1024]
[1730790587949,7.63060291,161.28,161.25,3.1024]
[1730790589553,3.1014,161.31,161.25,3.1024]
[1730790589756,7.63060291,161.27,161.25,3.1024]
[1730790591957,7.63060291,161.27,161.26,5.9222]
[1730790592457,3.1013,161.32,161.26,5.9222]
[1730790592649,7.63060291,161.28,161.26,5.9222]
[1730790594147,3.1013,161.32,161.26,2.82]
[1730790594346,3.1013,161.32,161.27,7.63060291]
[1730790594347,7.63060291,161.32,161.27,7.63060291]
[1730790594856,7.63060291,161.32,161.3,3.1014]
[1730790595959,1.4134,161.36,161.27,7.63060291]
[1730790596255,7.63060291,161.33,161.32,3.101]
[1730790598845,7.63060291,161.33,161.3,2.82]
[1730790599046,7.63060291,161.31,161.3,5.9215]
[1730790599250,7.63060291,161.31,161.3,3.1015]
[1730790600358,7.63060291,161.31,161.28,2.82]
[1730790600560,7.63060291,161.29,161.28,5.9219]
[1730790600754,7.63060291,161.29,161.28,3.1019]
[1730790606658,7.63060291,161.3,161.28,3.1019]
[1730790607474,1.4134,161.36,161.29,3.1017]
[1730790607475,7.63060291,161.32,161.29,3.1017]
[1730790608263,1.4134,161.36,161.27,2.78]
[1730790608467,7.63060291,161.32,161.28,7.63060291]
[1730790609180,7.63060291,161.32,161.31,3.1013]
[1730790609378,1.4134,161.36,161.31,3.1013]
[1730790609575,7.63060291,161.32,161.31,3.1013]
[1730790614174,1.4134,161.36,161.27,10.41060291]
[1730790614476,1.4134,161.36,161.33,3.1009]
[1730790615979,1.4134,161.36,161.27,10.41060291]
[1730790616172,7.63060291,161.33,161.27,10.41060291]
[1730790616576,7.63060291,161.33,161.32,3.1011]
[1730790622083,7.63060291,161.33,161.3,3.1014]
[1730790622284,7.63060291,161.31,161.29,2.78]
[1730790623181,3.1008,161.34,161.29,5.8816]
[1730790623379,7.63060291,161.31,161.29,2.78]
[1730790624377,7.63060291,161.31,161.3,3.1014]
[1730790624981,7.63060291,161.31,161.29,2.78]
[1730790625282,7.63060291,161.31,161.29,5.8815]
[1730790625985,7.63060291,161.31,161.3,3.1015]
[1730790628285,3.1005,161.35,161.3,3.1015]
[1730790628584,7.63060291,161.31,161.3,3.1015]
[1730790633881,7.63060291,161.31,161.28,2.78]
[1730790634188,7.63060291,161.29,161.26,1.2819]
[1730790634392,7.63060291,161.29,161.27,2.76]
[1730790635183,7.63060291,161.29,161.27,5.862]
[1730790635979,7.63060291,161.29,161.28,3.1019]
[1730790636184,7.63060291,161.33,161.28,7.63060291]
[1730790636891,7.63060291,161.33,161.3,3.1013]
[1730790637784,7.63060291,161.31,161.26,8.91250291]
[1730790637991,7.63060291,161.3,161.28,3.1017]
[1730790638387,7.63060291,161.3,161.27,2.76]
[1730790638595,7.63060291,161.3,161.28,3.1019]
[1730790639096,7.63060291,161.3,161.27,5.8619]
[1730790639393,7.63060291,161.3,161.27,2.76]
[1730790639693,7.63060291,161.31,161.27,2.76]
[1730790640286,7.63060291,161.31,161.29,3.1015]
[1730790641195,7.63060291,161.32,161.29,3.1015]
[1730790642393,7.63060291,161.3,161.29,3.1015]
[1730790642594,7.63060291,161.3,161.28,2.76]
[1730790643187,7.63060291,161.3,161.28,5.8617]
[1730790643489,7.63060291,161.3,161.28,2.76]
[1730790644287,7.63060291,161.3,161.29,3.1017]
[1730790644982,7.63060291,161.31,161.29,3.1017]
[1730790645693,7.63060291,161.3,161.28,5.8618]
[1730790646597,7.63060291,161.3,161.28,3.1018]
[1730790646794,7.63060291,161.3,161.29,3.1017]
[1730790647293,3.1006,161.35,161.29,3.1017]
[1730790647487,7.63060291,161.31,161.29,3.1017]
[1730790648298,1.4134,161.36,161.28,7.63060291]
[1730790648498,7.63060291,161.33,161.28,7.63060291]
[1730790648797,7.63060291,161.32,161.28,7.63060291]
[1730790649001,7.63060291,161.32,161.27,2.76]
[1730790650697,7.63060291,161.32,161.3,3.1013]
[1730790651596,7.63060291,161.32,161.31,3.1013]
[1730790652198,7.63060291,161.32,161.31,3.1012]
[1730790661708,37.73009625,161.38,161.29,2.76]
[1730790661901,37.73009625,161.38,161.31,7.63060291]
[1730790662102,7.63060291,161.36,161.3,1.3073]
[1730790662298,7.63060291,161.36,161.3,8.93790291]
[1730790662499,7.63060291,161.36,161.34,3.1006]
[1730790664706,37.73009625,161.38,161.34,3.1006]
[1730790664900,37.73009625,161.38,161.35,3.1004]
[1730790665207,7.63060291,161.37,161.35,3.1004]
[1730790665410,0.45252,161.4,161.33,2.76]
[1730790665614,7.63060291,161.38,161.34,7.63060291]
[1730790666203,7.63060291,161.36,161.33,2.76]
[1730790666611,7.63060291,161.36,161.31,10.34190291]
[1730790666810,7.63060291,161.36,161.32,2.76]
[1730790667206,7.63060291,161.36,161.33,3.1009]
[1730790668605,7.63060291,161.35,161.31,1.4142]
[1730790668812,7.63060291,161.35,161.32,2.76]
[1730790669315,7.63060291,161.35,161.33,3.1009]
[1730790669712,7.63060291,161.34,161.31,1.4142]
[1730790670009,7.63060291,161.34,161.32,2.76]
[1730790670415,7.63060291,161.34,161.32,5.861]
[1730790671207,7.63060291,161.34,161.32,2.76]
[1730790671408,7.63060291,161.34,161.31,3.1012]
[1730790672610,0.45252,161.4,161.32,7.63060291]
[1730790672817,7.63060291,161.37,161.32,7.63060291]
[1730790673210,7.63060291,161.37,161.35,3.1004]
[1730790673519,7.63060291,161.36,161.34,2.76]
[1730790673713,7.63060291,161.35,161.32,2.76]
[1730790673917,7.63060291,161.35,161.34,3.1006]
[1730790676718,3.0996,161.4,161.34,3.1006]
[1730790676915,7.63060291,161.36,161.34,3.1006]
[1730790677219,7.63060291,161.36,161.35,3.1005]
[1730790677406,3.0996,161.4,161.35,3.1005]
[1730790677611,7.63060291,161.36,161.35,3.1005]
[1730790679319,7.63060291,161.37,161.35,3.1005]
[1730790684223,7.63060291,161.37,161.36,3.1003]
[1730790694434,5.4633,161.42,161.36,3.1003]
[1730790694637,1.2878,161.42,161.38,3.0998]
[1730790694839,7.63060291,161.4,161.38,3.0998]
[1730790695634,4.387,161.42,161.38,3.0998]
[1730790695840,7.63060291,161.39,161.38,3.0998]
[1730790703153,8.16525291,161.46,161.44,3.0987]
[1730790704548,7.63060291,161.45,161.44,3.0987]
[1730790709043,7.63060291,161.45,161.39,10.40550291]
[1730790709247,7.63060291,161.43,161.42,3.099]
[1730790710150,7.63060291,161.43,161.38,8.93910291]
[1730790710151,7.63060291,161.43,161.38,7.63060291]
[1730790710354,7.63060291,161.42,161.41,3.0993]
[1730790712447,10.72980291,161.42,161.38,3.0999]
[1730790712645,7.63060291,161.4,161.38,3.0999]
[1730790716357,7.63060291,161.41,161.39,3.0997]
[1730790718058,41.75444131,161.47,161.39,3.0997]
[1730790718261,7.63060291,161.41,161.39,3.0997]
[1730790718755,7.63060291,161.4,161.38,3.0999]
[1730790719754,7.63060291,161.4,161.36,10.39060291]
[1730790719959,7.63060291,161.4,161.37,3.1001]
[1730790723065,7.63060291,161.4,161.36,10.39060291]
[1730790723259,7.63060291,161.4,161.37,3.1001]
[1730790725871,7.63060291,161.4,161.38,3.0998]
[1730790726167,7.63060291,161.41,161.38,3.0998]
[1730790727265,7.63060291,161.41,161.39,3.0997]
[1730790729071,7.63060291,161.41,161.4,3.0995]
[1730790730671,7.63060291,161.43,161.37,7.63060291]
[1730790730876,7.63060291,161.43,161.42,3.0991]
[1730790734270,7.63060291,161.43,161.41,3.0992]
[1730790734474,7.63060291,161.43,161.4,2.76]
[1730790734877,7.63060291,161.43,161.41,3.0992]
[1730790739479,7.63060291,161.43,161.4,2.76]
[1730790739784,42.21144131,161.47,161.42,3.0992]
[1730790740092,7.63060291,161.45,161.42,3.099]
[1730790741577,7.63060291,161.45,161.43,3.0989]
[1730790743484,7.63060291,161.45,161.41,3.0993]
[1730790743689,7.63060291,161.45,161.4,10.39060291]
[1730790743885,7.63060291,161.45,161.4,2.76]
[1730790744375,42.21144131,161.47,161.43,3.0989]
[1730790749691,7.63060291,161.44,161.43,3.0989]
[1730790750083,7.63060291,161.44,161.38,2.6903]
[1730790750285,3.0989,161.44,161.41,3.0993]
[1730790750589,7.63060291,161.42,161.41,3.0993]
[1730790751389,7.63060291,161.42,161.4,3.0995]
[1730790751588,7.63060291,161.41,161.4,3.0995]
[1730790752086,7.63060291,161.41,161.38,3.0998]
[1730790752295,7.63060291,161.39,161.38,3.0998]
[1730790757294,7.63060291,161.39,161.37,5.86]
[1730790757491,3.0993,161.42,161.37,5.86]
[1730790757492,7.63060291,161.4,161.37,5.86]
[1730790760598,7.63060291,161.4,161.37,3.1]
[1730790762305,7.63060291,161.4,161.36,10.39060291]
[1730790762306,7.63060291,161.4,161.38,3.0999]
[1730790762802,7.63060291,161.4,161.36,10.39060291]
[1730790763004,7.63060291,161.4,161.37,3.1]
[1730790764303,7.63060291,161.4,161.36,10.39060291]
[1730790764505,7.63060291,161.4,161.38,3.0999]
[1730790766005,7.63060291,161.41,161.38,3.0999]
[1730790770007,7.63060291,161.42,161.39,3.0996]
[1730790770405,7.63060291,161.42,161.37,7.63060291]
[1730790770610,7.63060291,161.42,161.4,3.0995]
[1730790771909,7.63060291,161.43,161.41,3.0994]
[1730790772110,39.11314131,161.47,161.37,7.63060291]
[1730790772111,44.97144131,161.47,161.39,7.63060291]
[1730790772305,7.63060291,161.44,161.39,7.63060291]
[1730790773007,7.63060291,161.44,161.42,3.0991]
[1730790773908,7.63060291,161.44,161.39,7.63060291]
[1730790774112,7.63060291,161.44,161.43,3.099]
[1730790776817,37.71064131,161.47,161.38,7.63060291]
[1730790777116,7.63060291,161.46,161.45,3.0985]
[1730790778612,37.71064131,161.47,161.45,3.0985]
[1730790778817,7.63060291,161.46,161.45,3.0985]
[1730790787225,7.63060291,161.46,161.44,3.0987]
[1730790787618,7.63060291,161.46,161.4,7.63060291]
[1730790787820,7.63060291,161.43,161.42,3.099]
[1730790789931,7.63060291,161.43,161.39,1.3283]
[1730790790123,10.72960291,161.43,161.4,3.0995]
[1730790790722,7.63060291,161.43,161.4,3.0995]
[1730790791227,7.63060291,161.41,161.39,3.0997]
[1730790793526,1.3567,161.47,161.37,11.72710291]
[1730790793733,7.63060291,161.45,161.41,3.0992]
[1730790795232,10.72920291,161.45,161.41,3.0992]
[1730790795832,7.63060291,161.44,161.41,3.0992]
[1730790796926,7.63060291,161.43,161.4,3.0995]
[1730790799934,3.0983,161.47,161.41,2.76]
[1730790800236,7.63060291,161.46,161.42,3.099]
[1730790800736,7.63060291,161.46,161.41,2.76]
[1730790801035,10.72900291,161.46,161.41,2.76]
[1730790801735,7.63060291,161.44,161.41,5.8592]
[1730790802037,7.63060291,161.43,161.4,2.76]
[1730790802226,7.63060291,161.43,161.4,5.8594]
[1730790802622,7.63060291,161.43,161.4,2.76]
[1730790804234,7.63060291,161.43,161.41,3.0993]
[1730790806746,7.63060291,161.42,161.39,3.0996]
[1730790806936,7.63060291,161.42,161.38,11.76830291]
[1730790807439,7.63060291,161.42,161.38,4.1377]
[1730790807632,7.63060291,161.41,161.38,2.76]
[1730790808032,7.63060291,161.41,161.39,3.0997]
[1730790808245,7.63060291,161.44,161.38,10.39060291]
[1730790808440,7.63060291,161.42,161.37,83.97565723]
[1730790808642,7.63060291,161.42,161.38,2.76]
[1730790809446,7.63060291,161.42,161.39,3.0997]
[1730790810636,1.3552,161.47,161.39,3.0997]
[1730790810946,7.63060291,161.42,161.39,3.0997]
[1730790811643,7.63060291,161.41,161.39,3.0997]
[1730790811846,7.63060291,161.41,161.37,79.49725432]
[1730790812537,7.63060291,161.41,161.37,76.73725432]
[1730790813047,5.8589,161.44,161.4,3.0995]
[1730790813346,7.63060291,161.43,161.4,3.0995]
[1730790815548,7.63060291,161.43,161.38,7.63060291]
[1730790815848,7.63060291,161.43,161.41,3.0993]
[1730790817140,3.0987,161.45,161.38,7.63060291]
[1730790817336,7.63060291,161.44,161.39,4.13631264]
[1730790817543,7.63060291,161.48,161.43,7.63060291]
[1730790817941,7.63060291,161.47,161.44,3.0986]
[1730790818136,7.63060291,161.45,161.41,7.63060291]
[1730790818651,7.63060291,161.45,161.43,3.0988]
[1730790820152,3.098,161.49,161.45,3.0984]
[1730790820451,7.63060291,161.47,161.45,3.0984]
[1730790821049,7.63060291,161.47,161.42,2.6266]
[1730790821545,3.098,161.49,161.42,2.6266]
[1730790821744,7.63060291,161.47,161.45,3.0985]
[1730790822953,7.63060291,161.47,161.43,7.63060291]
[1730790823155,1.416,161.51,161.43,2.76]
[1730790823351,1.416,161.51,161.44,2.08145559]
[1730790823544,7.63060291,161.47,161.43,2.76]
[1730790823748,3.0977,161.5,161.44,2.08145887]
[1730790823944,3.0977,161.5,161.43,2.76]
[1730790824256,7.63060291,161.47,161.44,2.08122914]
[1730790824458,7.63060291,161.47,161.45,2.08122914]
[1730790824762,7.63060291,161.47,161.46,3.0984]
[1730790827049,1.416,161.51,161.44,2.76]
[1730790827050,3.0976,161.51,161.47,3.0981]
[1730790827251,7.63060291,161.49,161.47,3.0981]
[1730790829657,1.3616,161.55,161.44,2.76]
[1730790829849,7.63060291,161.49,161.45,7.63060291]
[1730790830253,7.63060291,161.49,161.44,2.76]
[1730790830254,7.63060291,161.48,161.47,3.0981]
[1730790830464,7.63060291,161.48,161.44,10.39060291]
[1730790831163,7.63060291,161.48,161.45,2.07942653]
[1730790831363,7.63060291,161.48,161.45,3.0985]
[1730790831863,7.63060291,161.48,161.44,10.39060291]
[1730790832063,7.63060291,161.48,161.46,3.0984]
[1730790832459,7.63060291,161.48,161.45,3.0985]
[1730790832665,0.06481024,161.46,161.45,3.0985]
[1730790833067,0.06481024,161.46,161.45,5.1775386]
[1730790834066,0.06481024,161.46,161.45,2.0790386]
[1730790835074,10.72860291,161.48,161.44,5.8586]
[1730790835266,7.63060291,161.47,161.44,2.76]
[1730790835461,7.63060291,161.47,161.42,10.25720291]
[1730790835663,7.63060291,161.47,161.42,13.01720291]
[1730790836267,10.72890291,161.47,161.43,3.0989]
[1730790837271,7.63060291,161.47,161.43,3.0989]
[1730790837466,7.63060291,161.47,161.44,2.07941309]
[1730790837666,7.63060291,161.47,161.43,3.0989]
[1730790838268,10.72880291,161.47,161.43,3.0989]
[1730790838677,1.3879,161.52,161.42,13.01720291]
[1730790838972,7.63060291,161.47,161.44,3.0987]
[1730790840280,3.098,161.48,161.44,3.0987]
[1730790840466,10.72860291,161.48,161.44,3.0987]
[1730790841074,2.76,161.51,161.44,7.63060291]
[1730790841373,7.63060291,161.49,161.44,7.63060291]
[1730790842166,3.098,161.48,161.44,10.72930291]
[1730790842373,3.098,161.48,161.44,3.0987]
[1730790842674,7.63060291,161.47,161.43,2.76]
[1730790843069,10.72900291,161.46,161.42,5.3866]
[1730790843271,10.72900291,161.46,161.42,4.0878]
[1730790844276,10.72900291,161.46,161.42,5.8592]
[1730790844481,10.72900291,161.46,161.42,3.0992]
[1730790845077,7.63060291,161.46,161.41,7.63060291]
[1730790845275,3.0986,161.45,161.42,4.12856371]
[1730790845479,10.72920291,161.45,161.41,3.0992]
[1730790845679,7.63060291,161.45,161.38,73.6796486]
[1730790845977,7.63060291,161.43,161.4,3.0995]
[1730790846782,7.63060291,161.43,161.38,81.31025151]
[1730790846992,7.63060291,161.43,161.39,4.13058206]
[1730790847280,7.63060291,161.43,161.4,3.0995]
[1730790848076,7.63060291,161.43,161.38,84.07025151]
[1730790848276,7.63060291,161.43,161.39,7.23029682]
[1730790848476,7.63060291,161.43,161.39,3.0996]
[1730790849691,7.63060291,161.43,161.4,2.07962824]
[1730790849883,7.63060291,161.43,161.39,3.0996]
[1730790850078,7.63060291,161.43,161.4,2.07963351]
[1730790850288,7.63060291,161.43,161.39,3.0996]
[1730790850475,7.63060291,161.43,161.4,2.07970376]
[1730790850681,7.63060291,161.43,161.39,3.0996]
[1730790850983,7.63060291,161.43,161.4,2.07970376]
[1730790851182,7.63060291,161.43,161.41,2.07970376]
[1730790851381,7.63060291,161.43,161.4,3.0995]
[1730790851594,7.63060291,161.43,161.41,2.07966214]
[1730790851888,7.63060291,161.43,161.4,3.0995]
[1730790852088,7.63060291,161.43,161.41,2.07966874]
[1730790852287,7.63060291,161.43,161.4,3.0995]
[1730790852478,7.63060291,161.43,161.41,2.0797159]
[1730790852678,7.63060291,161.43,161.4,3.0995]
[1730790852882,7.63060291,161.43,161.41,2.07979028]
[1730790853085,7.63060291,161.43,161.4,3.0995]
[1730790853284,7.63060291,161.43,161.41,2.07982353]
[1730790853487,7.63060291,161.42,161.36,1.3727]
[1730790853683,7.63060291,161.4,161.35,7.63060291]
[1730790853888,7.63060291,161.4,161.37,3.1001]
[1730790854093,7.63060291,161.4,161.38,6.21175988]
[1730790854290,7.63060291,161.4,161.39,2.08003244]
[1730790855987,10.73010291,161.4,161.39,2.08003244]
[1730790856193,7.63060291,161.4,161.39,2.08003244]
[1730790860796,7.63060291,161.4,161.32,4.1373]
[1730790860998,1.3527,161.4,161.39,2.07981548]
[1730790861190,3.1003,161.37,161.33,3.1007]
[1730790861398,7.63060291,161.34,161.33,3.1007]
[1730790864515,10.73060291,161.38,161.32,7.63060291]
[1730790864994,10.73060291,161.38,161.34,3.1006]
[1730790865498,3.1,161.38,161.32,7.63060291]
[1730790865798,7.63060291,161.39,161.34,7.63060291]
[1730790866004,2.7264,161.46,161.36,7.63060291]
[1730790866211,7.63060291,161.42,161.36,7.63060291]
[1730790866405,10.39060291,161.43,161.39,7.63060291]
[1730790866697,10.39060291,161.43,161.38,7.63060291]
[1730790867206,13.48970291,161.43,161.39,3.0996]
[1730790867807,7.63060291,161.42,161.39,3.0996]
[1730790870001,7.63060291,161.42,161.38,3.0998]
[1730790870400,4.4519,161.45,161.38,7.63060291]
[1730790870608,7.63060291,161.44,161.4,3.0994]
[1730790870805,7.63060291,161.44,161.38,7.63060291]
[1730790871006,10.72950291,161.44,161.39,3.0997]
[1730790871303,7.63060291,161.44,161.38,7.63060291]
[1730790871708,10.72950291,161.44,161.4,3.0994]
[1730790872405,7.63060291,161.43,161.4,3.0994]
[1730790873208,7.63060291,161.43,161.38,7.63060291]
[1730790873411,10.72960291,161.43,161.39,3.0997]
[1730790875305,10.72960291,161.43,161.38,7.63060291]
[1730790875306,7.63060291,161.43,161.4,3.0995]
[1730790875500,7.63060291,161.43,161.38,7.63060291]
[1730790875710,3.0988,161.44,161.39,2.06754898]
[1730790876013,7.63060291,161.43,161.39,7.63060291]
[1730790876215,7.63060291,161.43,161.39,10.73030291]
[1730790877809,7.63060291,161.43,161.39,7.63060291]
[1730790878019,7.63060291,161.43,161.4,3.0995]
[1730790879004,7.63060291,161.43,161.39,7.63060291]
[1730790879209,10.72930291,161.45,161.4,7.63060291]
[1730790880505,7.63060291,161.45,161.4,7.63060291]
[1730790881102,7.63060291,161.44,161.4,7.63060291]
[1730790881613,7.63060291,161.44,161.41,3.0992]
[1730790886216,7.63060291,161.44,161.41,3.0993]
[1730790887616,7.63060291,161.43,161.38,10.43060291]
[1730790887815,7.63060291,161.43,161.39,2.06864866]
[1730790888009,7.63060291,161.43,161.38,10.43060291]
[1730790888222,7.63060291,161.43,161.4,3.0994]
[1730790888918,7.63060291,161.43,161.38,10.43060291]
[1730790889111,7.63060291,161.43,161.39,2.06826345]
[1730790889312,7.63060291,161.43,161.38,10.43060291]
[1730790889519,7.63060291,161.43,161.4,3.0994]
[1730790890313,10.72990291,161.42,161.38,2.8]
[1730790890517,10.72990291,161.42,161.36,7.63060291]
[1730790890719,10.72990291,161.42,161.37,6.19399001]
[1730790891021,10.72990291,161.42,161.38,2.06861285]
[1730790891221,10.72990291,161.42,161.36,7.63060291]
[1730790891521,10.72990291,161.42,161.37,2.06873846]
[1730790891722,7.63060291,161.4,161.38,2.06873846]
[1730790891918,7.63060291,161.4,161.35,8.92300291]
[1730790892118,7.63060291,161.4,161.33,71.98859604]
[1730790892119,7.63060291,161.37,161.36,4.12604341]
[1730790892321,10.73080291,161.37,161.31,7.63060291]
[1730790892515,7.63060291,161.33,161.32,6.19771199]
[1730790892715,7.63060291,161.33,161.32,2.06976555]
[1730790893116,7.63060291,161.33,161.3,4.12794644]
[1730790893316,7.63060291,161.33,161.29,5.9016]
[1730790893517,3.1011,161.32,161.31,2.07001796]
[1730790893716,10.73170291,161.32,161.28,4.12989126]
[1730790893923,7.63060291,161.3,161.29,2.07054473]
[1730790894814,7.63060291,161.3,161.26,3.1021]
[1730790895015,7.63060291,161.3,161.27,6.19923079]
[1730790895217,7.63060291,161.3,161.28,2.06998726]
[1730790895427,7.63060291,161.3,161.26,3.1021]
[1730790895623,7.63060291,161.3,161.27,2.06919054]
[1730790895826,7.63060291,161.3,161.26,3.1021]
[1730790895827,7.63060291,161.3,161.28,2.06919054]
[1730790896014,7.63060291,161.3,161.26,3.1021]
[1730790896226,7.63060291,161.3,161.27,2.06861344]
[1730790896418,7.63060291,161.3,161.28,2.06861344]
[1730790896717,4.0543,161.35,161.25,4.12622084]
[1730790896718,7.63060291,161.29,161.25,4.12622084]
[1730790896923,7.63060291,161.27,161.23,4.12622084]
[1730790897222,7.63060291,161.26,161.24,2.06857629]
[1730790897422,7.63060291,161.26,161.21,7.63060291]
[1730790898222,7.63060291,161.26,161.23,3.1028]
[1730790898428,7.63060291,161.26,161.21,7.63060291]
[1730790899230,7.63060291,161.26,161.22,4.12628372]
[1730790900227,7.63060291,161.26,161.23,3.1027]
[1730790901328,7.63060291,161.25,161.22,3.1029]
[1730790901526,7.63060291,161.25,161.2,10.43060291]
[1730790901828,7.63060291,161.25,161.19,7.63060291]
[1730790902423,7.63060291,161.25,161.18,4.1106]
[1730790902727,7.63060291,161.25,161.19,7.63060291]
[1730790903128,7.63060291,161.25,161.2,11.76120377]
[1730790903329,7.63060291,161.25,161.2,13.83175315]
[1730790903529,7.63060291,161.25,161.21,9.30415024]
[1730790903935,7.63060291,161.25,161.22,2.07054938]
[1730790904119,7.63060291,161.25,161.23,2.07054938]
[1730790904326,7.63060291,161.25,161.21,7.23422155]
[1730790904527,7.63060291,161.25,161.22,2.07088068]
[1730790904726,7.63060291,161.25,161.23,2.07088068]
[1730790904929,7.63060291,161.25,161.22,2.07088068]
[1730790905136,7.63060291,161.25,161.23,2.07088068]
[1730790905334,7.63060291,161.25,161.22,2.07088068]
[1730790905534,1.3466,161.28,161.23,7.63060291]
[1730790905731,7.63060291,161.28,161.23,7.63060291]
[1730790905932,7.63060291,161.28,161.24,7.63060291]
[1730790906133,2.78,161.3,161.27,3.102]
[1730790906333,7.63060291,161.3,161.27,3.102]
[1730790906936,2.78,161.31,161.25,7.63060291]
[1730790907129,10.41060291,161.31,161.27,3.102]
[1730790907525,7.63060291,161.31,161.26,7.63060291]
[1730790907732,10.41060291,161.32,161.29,3.1016]
[1730790908430,7.63060291,161.31,161.29,3.1016]
[1730790909242,7.63060291,161.31,161.26,7.63060291]
[1730790909243,7.63060291,161.3,161.25,3.1023]
[1730790909535,7.63060291,161.28,161.24,9.02280291]
[1730790910326,7.63060291,161.28,161.25,3.1024]
[1730790910544,7.63060291,161.28,161.24,9.02280291]
[1730790911137,7.63060291,161.27,161.23,3.4103684]
[1730790911341,7.63060291,161.25,161.22,3.1029]
[1730790911637,7.63060291,161.25,161.21,2.78]
[1730790911638,7.63060291,161.25,161.21,4.8462684]
[1730790912028,7.63060291,161.25,161.21,2.78]
[1730790912341,7.63060291,161.25,161.22,3.1029]
[1730790921744,7.63060291,161.25,161.23,3.1027]
[1730790922051,7.63060291,161.25,161.2,9.69413469]
[1730790922344,7.63060291,161.25,161.22,3.1029]
[1730790925352,7.63060291,161.25,161.2,7.63060291]
[1730790925550,7.63060291,161.25,161.2,9.69440682]
[1730790927153,7.63060291,161.25,161.22,3.1029]
[1730790929460,7.63060291,161.23,161.2,2.06247937]
[1730790929757,7.63060291,161.21,161.16,7.63060291]
[1730790929952,7.63060291,161.21,161.16,9.69308228]
[1730790930153,7.63060291,161.21,161.18,3.1036]
[1730790930659,7.63060291,161.2,161.18,3.1036]
[1730790930850,5.8829,161.23,161.18,3.1036]
[1730790931049,5.8829,161.23,161.17,7.63060291]
[1730790931050,2.78,161.23,161.17,7.63060291]
[1730790931254,10.41060291,161.23,161.19,3.1035]
[1730790933155,10.41060291,161.23,161.2,3.1033]
[1730790933965,7.63060291,161.21,161.2,3.1033]
[1730790936660,7.63060291,161.23,161.17,7.63060291]
[1730790937562,7.63060291,161.25,161.2,7.63060291]
[1730790937859,7.63060291,161.25,161.23,3.1028]
[1730790938363,37.76084012,161.26,161.22,7.63060291]
[1730790938558,37.76084012,161.26,161.25,3.1024]
[1730790939351,1.3167,161.37,161.22,2.78]
[1730790939556,7.63060291,161.3,161.27,3.1019]
[1730790940350,2.7609,161.36,161.29,3.1015]
[1730790940559,7.63060291,161.33,161.29,3.1015]
[1730790940763,7.63060291,161.33,161.27,7.63060291]
[1730790940962,7.63060291,161.33,161.3,3.1013]
[1730790941360,7.63060291,161.31,161.3,3.1013]
[1730790942056,7.63060291,161.31,161.26,10.41060291]
[1730790942261,7.63060291,161.3,161.26,10.41060291]
[1730790942658,7.63060291,161.3,161.27,3.102]
[1730790942862,7.63060291,161.3,161.26,10.41060291]
[1730790943060,7.63060291,161.3,161.28,3.1017]
[1730790943259,7.63060291,161.29,161.26,2.78]
[1730790943656,7.63060291,161.3,161.26,2.78]
[1730790944569,7.63060291,161.3,161.28,3.1019]
[1730790945766,7.63060291,161.29,161.28,3.1019]
[1730790946364,7.63060291,161.29,161.25,3.1024]
[1730790946559,7.63060291,161.27,161.25,3.1024]
[1730790947766,2.78,161.31,161.23,7.63060291]
[1730790947966,7.63060291,161.29,161.27,3.1019]
[1730790950165,7.63060291,161.29,161.24,7.63060291]
[1730790950362,7.63060291,161.28,161.25,3.1023]
[1730790950574,7.63060291,161.26,161.25,3.1023]
[1730790951665,7.63060291,161.26,161.23,3.1028]
[1730790951964,7.63060291,161.24,161.19,1.3719]
[1730790952271,7.63060291,161.23,161.19,1.3719]
[1730790952470,7.63060291,161.23,161.18,7.63060291]
[1730790952858,7.63060291,161.23,161.2,3.1032]
[1730790954763,7.63060291,161.23,161.17,7.63060291]
[1730790954971,7.63060291,161.21,161.19,3.1035]
[1730790955361,15.02231562,161.24,161.19,3.1035]
[1730790956974,11.91951562,161.24,161.16,2.78]
[1730790957163,11.91951562,161.22,161.18,3.1037]
[1730790957362,11.91951562,161.22,161.16,4.03282459]
[1730790957675,11.91951562,161.22,161.18,3.1036]
[1730790959475,11.91951562,161.22,161.18,7.14639054]
[1730790959677,11.91951562,161.22,161.18,3.1036]
[1730790960176,11.91951562,161.22,161.19,4.04279054]
[1730790960477,11.91951562,161.22,161.19,3.1034]
[1730790960873,15.02221562,161.24,161.19,3.1034]
[1730790961072,11.91951562,161.24,161.2,3.1033]